bitfinex/quotes_BTCUSD_20220201
["timestamp","ask_amount","ask_price","bid_price","bid_amount"]
[1643719460379,0.00133929,38703.0,38702.0,0.58585616]
[1643719460579,0.010422,38707.0,38702.0,0.37781552]
[1643719460779,0.010422,38707.0,38703.0,0.19821269]
[1643719460780,0.0013394,38704.0,38703.0,0.19821269]
[1643719460978,0.0013394,38704.0,38702.0,0.37781552]
[1643719461781,0.010422,38707.0,38702.0,0.37781552]
[1643719461979,0.0013394,38705.0,38702.0,0.37781552]
[1643719462579,0.0013394,38705.0,38702.0,0.15364864]
[1643719462783,0.0013394,38705.0,38702.0,0.17177828]
[1643719462980,0.010422,38707.0,38702.0,0.17177828]
[1643719463181,0.0013394,38705.0,38703.0,0.20299562]
[1643719463379,0.0013394,38705.0,38702.0,0.15364864]
[1643719463579,0.0013394,38705.0,38703.0,0.28383015]
[1643719463780,0.0013394,38705.0,38702.0,0.15364864]
[1643719464223,0.010422,38707.0,38702.0,0.15364864]
[1643719464423,0.0013394,38705.0,38702.0,0.15364864]
[1643719465331,0.010422,38707.0,38702.0,0.15364864]
[1643719465524,0.0013394,38705.0,38702.0,0.15364864]
[1643719466425,0.010422,38707.0,38702.0,0.15364864]
[1643719466625,0.0013394,38705.0,38702.0,0.15364864]
[1643719467524,0.0013394,38705.0,38698.0,0.24864402]
[1643719467782,0.08970626,38707.0,38698.0,0.24864402]
[1643719467988,0.08970626,38707.0,38695.0,0.60205833]
[1643719467989,0.0013394,38705.0,38695.0,0.3959]
[1643719468379,0.0013394,38705.0,38695.0,0.60151926]
[1643719468581,0.0013394,38705.0,38698.0,0.0203063]
[1643719468981,0.06461,38706.0,38699.0,0.23769069]
[1643719469181,0.0013394,38703.0,38699.0,0.23769069]
[1643719469580,0.39885326,38702.0,38699.0,0.23269069]
[1643719471180,0.00133937,38703.0,38699.0,0.23269069]
[1643719471427,0.010422,38707.0,38699.0,0.33269069]
[1643719471627,0.00133937,38703.0,38698.0,0.20975077]
[1643719471828,0.00133937,38703.0,38697.0,0.16010823]
[1643719472031,0.00133937,38703.0,38695.0,0.5945289]
[1643719472328,0.00133937,38703.0,38695.0,0.3959]
[1643719472527,0.15420785,38705.0,38695.0,0.3959]
[1643719472727,0.4091172,38701.0,38695.0,0.3959]
[1643719472930,0.4091172,38701.0,38694.0,0.3271894]
[1643719473130,0.4091172,38701.0,38697.0,0.17464449]
[1643719473529,0.4091172,38701.0,38697.0,0.15599562]
[1643719479427,0.4091172,38701.0,38694.0,0.2771894]
[1643719480628,0.4091172,38701.0,38694.0,0.43313087]
[1643719481230,0.4091172,38701.0,38694.0,0.53313087]
[1643719481832,0.4091172,38701.0,38694.0,0.43313087]
[1643719483073,0.4091172,38701.0,38694.0,0.43303947]
[1643719484276,0.4091172,38701.0,38700.0,0.15693946]
[1643719486078,0.4091172,38701.0,38694.0,0.277098]
[1643719486296,0.00133937,38703.0,38694.0,0.277098]
[1643719486297,0.34895308,38695.0,38694.0,0.277098]
[1643719486927,0.34895308,38695.0,38689.0,0.24972006]
[1643719487226,0.34895308,38695.0,38694.0,0.14431658]
[1643719489727,0.06595617,38703.0,38694.0,0.14431658]
[1643719489929,0.23485627,38702.0,38694.0,0.14431658]
[1643719490178,0.07685371,38701.0,38694.0,0.14431658]
[1643719490374,0.14147171,38701.0,38694.0,0.14431658]
[1643719490872,0.40377797,38696.0,38694.0,0.14431658]
[1643719493077,0.40377797,38696.0,38691.0,0.00185733]
[1643719494137,0.40377797,38696.0,38691.0,0.17658386]
[1643719494332,0.40377797,38696.0,38691.0,0.22844117]
[1643719494533,0.40377797,38696.0,38691.0,0.12844117]
[1643719495334,0.40377797,38696.0,38691.0,0.12658386]
[1643719495535,0.40377797,38696.0,38691.0,0.12844117]
[1643719495734,0.40377797,38696.0,38691.0,0.22844117]
[1643719496235,0.010346,38697.0,38691.0,0.22844117]
[1643719496639,0.010346,38697.0,38691.0,0.22658386]
[1643719496834,0.010346,38697.0,38691.0,0.22777186]
[1643719497034,0.010346,38697.0,38695.0,0.25459059]
[1643719497714,0.010346,38697.0,38695.0,0.35459059]
[1643719497907,0.24420404,38707.0,38696.0,0.349249]
[1643719497908,0.010422,38707.0,38696.0,0.349249]
[1643719498106,0.010422,38707.0,38695.0,0.35459059]
[1643719498507,0.010422,38707.0,38695.0,0.1]
[1643719498706,0.010422,38707.0,38694.0,0.1146]
[1643719498707,0.075031,38707.0,38699.0,0.12858747]
[1643719498905,0.075031,38707.0,38694.0,0.1646]
[1643719499106,0.00134032,38705.0,38694.0,0.2146]
[1643719499507,0.36288431,38699.0,38694.0,0.46398722]
[1643719499706,0.36288431,38699.0,38694.0,0.34938722]
[1643719499908,0.36288431,38699.0,38696.0,0.16804874]
[1643719500309,0.36288431,38699.0,38696.0,0.21804874]
[1643719501527,0.36288431,38699.0,38691.0,0.064614]
[1643719501528,0.36288431,38699.0,38691.0,0.05185784]
[1643719501729,0.36288431,38699.0,38691.0,0.00185784]
[1643719501730,0.23246642,38698.0,38691.0,0.00185784]
[1643719501934,0.41448431,38699.0,38691.0,0.00185784]
[1643719502129,0.0516,38697.0,38691.0,0.00185784]
[1643719502330,0.30007478,38692.0,38691.0,0.00185784]
[1643719502529,0.35167478,38692.0,38686.0,0.375]
[1643719502728,0.35167478,38692.0,38690.0,0.00185781]
[1643719503730,0.35167478,38692.0,38687.0,0.16278855]
[1643719503930,0.35167478,38692.0,38689.0,0.00185782]
[1643719504331,0.41631378,38692.0,38689.0,0.00185782]
[1643719504931,0.41631378,38692.0,38683.0,9.41]
[1643719505181,0.41631378,38692.0,38689.0,0.00185784]
[1643719505975,0.35167478,38692.0,38689.0,0.00185784]
[1643719506180,0.35167478,38692.0,38684.0,0.18704787]
[1643719506376,0.35167478,38692.0,38689.0,0.00185784]
[1643719507378,0.064637,38696.0,38685.0,0.06463058]
[1643719507577,0.064629,38697.0,38689.0,0.00185784]
[1643719507976,0.064629,38697.0,38692.0,0.2845879]
[1643719508375,0.064629,38697.0,38689.0,0.00185784]
[1643719508376,0.33059487,38694.0,38689.0,0.00185784]
[1643719508576,0.33059487,38694.0,38687.0,0.06462661]
[1643719508776,0.33059487,38694.0,38691.0,0.00185779]
[1643719509233,0.01698052,38692.0,38691.0,0.00185779]
[1643719509432,0.03396104,38692.0,38691.0,0.00185779]
[1643719509837,0.03396104,38692.0,38684.0,0.14144724]
[1643719510031,0.03396104,38692.0,38690.0,0.00185781]
[1643719511033,0.03396104,38692.0,38684.0,0.14144724]
[1643719511332,0.03396104,38692.0,38689.0,0.00185782]
[1643719512133,0.03396104,38692.0,38684.0,0.14144724]
[1643719512336,0.03396104,38692.0,38689.0,0.00185784]
[1643719513377,0.03396104,38692.0,38684.0,0.22460787]
[1643719513577,0.03396104,38692.0,38689.0,0.00185784]
[1643719513778,0.36269426,38690.0,38689.0,0.00185784]
[1643719514384,0.60967968,38690.0,38689.0,0.00185784]
[1643719514578,0.6266602,38690.0,38683.0,9.41]
[1643719514783,0.0516,38689.0,38688.0,0.00185787]
[1643719515883,0.0516,38689.0,38684.0,0.02109305]
[1643719516081,0.0516,38689.0,38687.0,0.0018579]
[1643719516728,0.4612973,38690.0,38687.0,0.0018579]
[1643719516929,0.4716463,38690.0,38683.0,9.41]
[1643719517128,0.4716463,38690.0,38687.0,0.0018579]
[1643719517330,0.71025021,38690.0,38687.0,0.0018579]
[1643719517533,0.129295,38689.0,38687.0,0.0018579]
[1643719517730,0.30731091,38688.0,38687.0,0.0018579]
[1643719518130,0.30731091,38688.0,38683.0,9.41]
[1643719518332,0.37195691,38688.0,38686.0,0.00185793]
[1643719519232,0.116246,38688.0,38686.0,0.00185793]
[1643719519429,0.116246,38688.0,38683.0,9.41]
[1643719519630,0.116246,38688.0,38685.0,0.00185795]
[1643719520200,0.02396104,38686.0,38685.0,0.00185795]
[1643719520390,0.07556104,38686.0,38685.0,0.00185795]
[1643719520590,0.07556104,38686.0,38684.0,0.2680295]
[1643719520790,0.02396104,38686.0,38684.0,0.00185799]
[1643719521791,0.02396104,38686.0,38685.0,0.26303711]
[1643719522895,0.02396104,38686.0,38683.0,9.57316822]
[1643719523295,0.02396104,38686.0,38684.0,0.00185799]
[1643719524133,0.02396104,38686.0,38683.0,9.41]
[1643719524334,0.0516,38685.0,38683.0,9.41185801]
[1643719525241,0.02396104,38684.0,38683.0,9.41185801]
[1643719525436,0.02396104,38684.0,38683.0,9.41]
[1643719528880,0.02396104,38684.0,38683.0,9.65792816]
[1643719533633,0.129263,38699.0,38683.0,9.65792816]
[1643719533634,0.13058971,38703.0,38686.0,0.06462]
[1643719533832,0.42250481,38703.0,38687.0,0.39786972]
[1643719534032,0.24918971,38703.0,38687.0,0.39786972]
[1643719534433,0.24918971,38703.0,38694.0,0.15966777]
[1643719534434,0.47734766,38703.0,38694.0,0.15966777]
[1643719534634,0.36780631,38699.0,38694.0,0.15966777]
[1643719536281,0.36780631,38699.0,38694.0,0.15919645]
[1643719536682,0.36780631,38699.0,38691.0,0.06647782]
[1643719537482,0.064624,38698.0,38691.0,0.2480951]
[1643719537683,0.064624,38698.0,38692.0,0.17165405]
[1643719537883,0.064624,38698.0,38691.0,0.0018578]
[1643719538287,0.129251,38698.0,38691.0,0.0018578]
[1643719538683,0.129251,38698.0,38690.0,0.02190484]
[1643719538934,0.064624,38698.0,38691.0,0.00185779]
[1643719539730,0.064624,38698.0,38691.0,0.23103882]
[1643719540034,0.06462,38702.0,38691.0,0.29751661]
[1643719540433,0.06462,38702.0,38691.0,0.00185779]
[1643719540434,0.00744056,38701.0,38691.0,0.00185779]
[1643719540632,0.00744056,38701.0,38691.0,0.23289661]
[1643719540835,0.37427284,38700.0,38698.0,0.29498186]
[1643719541031,0.064618,38704.0,38698.0,0.29498186]
[1643719541232,0.77517,38703.0,38698.0,0.29498186]
[1643719542130,0.33383852,38700.0,38696.0,0.15450302]
[1643719542435,0.33383852,38700.0,38691.0,0.00105434]
[1643719542883,0.33383852,38700.0,38694.0,0.01850596]
[1643719543282,0.10464767,38698.0,38694.0,0.01850596]
[1643719543684,0.33383852,38700.0,38691.0,0.21731702]
[1643719543880,0.33383852,38700.0,38698.0,0.15226159]
[1643719544082,0.39846052,38700.0,38698.0,0.15226159]
[1643719545081,0.39846052,38700.0,38696.0,0.16409785]
[1643719545481,0.39846052,38700.0,38692.0,0.26891859]
[1643719545482,0.39846052,38700.0,38687.0,0.119]
[1643719545684,0.23427535,38699.0,38688.0,0.129238]
[1643719545883,0.46308452,38700.0,38688.0,0.129238]
[1643719545884,0.064626,38697.0,38688.0,0.129238]
[1643719546534,0.28909674,38697.0,38688.0,0.129238]
[1643719546736,0.08967242,38695.0,38692.0,0.13330903]
[1643719548135,0.29933558,38698.0,38692.0,0.13330903]
[1643719548436,0.064622,38699.0,38692.0,0.13330903]
[1643719548437,0.0116944,38696.0,38692.0,0.13330903]
[1643719548834,0.0013464,38696.0,38692.0,0.13330903]
[1643719549234,0.0013464,38696.0,38693.0,0.28968418]
[1643719549434,0.33383852,38700.0,38693.0,0.28968418]
[1643719549635,0.00134642,38696.0,38693.0,0.28968418]
[1643719550782,0.00134643,38696.0,38695.0,0.064613]
[1643719551588,0.00134643,38696.0,38693.0,0.28968418]
[1643719551788,0.41952906,38702.0,38686.0,0.2918456]
[1643719551789,0.06461168,38695.0,38686.0,0.2918456]
[1643719551983,0.06461168,38695.0,38690.0,0.16542609]
[1643719552785,0.12922568,38695.0,38690.0,0.16542609]
[1643719553186,0.05,38694.0,38690.0,0.16542609]
[1643719557334,0.17923791,38694.0,38690.0,0.16542609]
[1643719558981,0.11461661,38694.0,38691.0,0.21987027]
[1643719559182,0.00134635,38696.0,38692.0,0.400849]
[1643719559381,0.00134635,38696.0,38693.0,0.23158678]
[1643719559582,0.00134635,38696.0,38694.0,0.349249]
[1643719559980,0.00134635,38696.0,38695.0,0.9598287]
[1643719560181,0.44834909,38707.0,38695.0,0.56101383]
[1643719560381,0.06459954,38702.0,38697.0,0.15288366]
[1643719560582,0.06459954,38702.0,38698.0,0.349249]
[1643719561286,0.06459954,38702.0,38699.0,0.20518867]
[1643719561532,0.06459954,38702.0,38697.0,0.15288366]
[1643719561533,0.06459954,38702.0,38701.0,0.23140948]
[1643719561732,0.06594597,38702.0,38701.0,0.23140948]
[1643719561933,0.06594597,38702.0,38701.0,0.19525317]
[1643719562233,0.06594597,38702.0,38697.0,0.15288366]
[1643719562435,0.06594597,38702.0,38697.0,0.21748366]
[1643719562634,0.05959954,38702.0,38698.0,0.58016018]
[1643719562835,0.00134643,38701.0,38698.0,0.349249]
[1643719563736,0.00134643,38701.0,38699.0,0.20979786]
[1643719563938,0.05959954,38702.0,38699.0,0.20979786]
[1643719564138,0.00134643,38701.0,38699.0,0.20979786]
[1643719564336,0.00134643,38701.0,38700.0,0.349249]
[1643719564535,0.00134643,38701.0,38700.0,0.55690434]
[1643719564836,0.00134643,38701.0,38698.0,0.22444818]
[1643719565036,0.05959954,38702.0,38699.0,0.349249]
[1643719565280,0.06094597,38702.0,38700.0,0.19940235]
[1643719565683,0.06094597,38702.0,38698.0,0.22735026]
[1643719565879,0.06094597,38702.0,38699.0,0.349249]
[1643719566282,0.05959954,38702.0,38699.0,0.349249]
[1643719566485,0.05959954,38702.0,38698.0,0.22735026]
[1643719566486,0.06094597,38702.0,38698.0,0.22735026]
[1643719566680,0.06094597,38702.0,38699.0,0.349249]
[1643719566885,0.06094597,38702.0,38698.0,0.22735026]
[1643719567284,0.06094597,38702.0,38699.0,0.349249]
[1643719567483,0.05959954,38702.0,38698.0,0.22735026]
[1643719567683,0.06094597,38702.0,38698.0,0.22735026]
[1643719567884,0.12554997,38702.0,38698.0,0.22735026]
[1643719568285,0.17554997,38702.0,38698.0,0.22735026]
[1643719568485,0.17554997,38702.0,38697.0,0.15288366]
[1643719568687,0.17420354,38702.0,38698.0,0.19862508]
[1643719568929,0.35738186,38701.0,38697.0,0.15288366]
[1643719569132,0.17554997,38702.0,38697.0,0.15288366]
[1643719569831,0.12420354,38702.0,38697.0,0.15288366]
[1643719570035,0.00134643,38701.0,38698.0,0.54912924]
[1643719571036,0.12420354,38702.0,38698.0,0.54912924]
[1643719571331,0.00134643,38701.0,38698.0,0.19988024]
[1643719572332,0.12420354,38702.0,38698.0,0.19988024]
[1643719572685,0.00134643,38701.0,38698.0,0.19988024]
[1643719573379,0.12420354,38702.0,38698.0,0.19988024]
[1643719573781,0.00134643,38701.0,38698.0,0.19988024]
[1643719574482,0.00134643,38701.0,38697.0,0.15288366]
[1643719574682,0.12420354,38702.0,38698.0,0.349249]
[1643719574883,0.00134643,38701.0,38698.0,0.19834183]
[1643719575082,0.00134643,38701.0,38697.0,0.15288366]
[1643719575483,0.00134643,38701.0,38698.0,0.349249]
[1643719575684,0.00134643,38701.0,38697.0,0.15288366]
[1643719575883,0.17420354,38702.0,38697.0,0.15288366]
[1643719576083,0.00134643,38701.0,38697.0,0.15288366]
[1643719577132,0.12420354,38702.0,38697.0,0.15288366]
[1643719577332,0.00134643,38701.0,38697.0,0.15288366]
[1643719578333,0.05959954,38702.0,38697.0,0.15288366]
[1643719578532,0.00134643,38701.0,38697.0,0.15288366]
[1643719579540,0.10959954,38702.0,38697.0,0.15288366]
[1643719579733,0.00134643,38701.0,38697.0,0.15288366]
[1643719580577,0.10959954,38702.0,38697.0,0.15288366]
[1643719580978,0.00134643,38701.0,38697.0,0.15288366]
[1643719581477,0.00134643,38701.0,38697.0,0.35479126]
[1643719581778,0.05959954,38702.0,38698.0,0.19926444]
[1643719581977,0.05959954,38702.0,38699.0,0.24736868]
[1643719581978,0.00134643,38701.0,38699.0,0.24736868]
[1643719582978,0.05959954,38702.0,38699.0,0.24736868]
[1643719583178,0.06094597,38702.0,38699.0,0.24736868]
[1643719584232,0.05959954,38702.0,38699.0,0.24736868]
[1643719584433,0.06094597,38702.0,38699.0,0.24736868]
[1643719585235,0.06094597,38702.0,38697.0,0.15288366]
[1643719585435,0.05959954,38702.0,38698.0,0.20924975]
[1643719585636,0.06094597,38702.0,38697.0,0.15288366]
[1643719586234,0.06094597,38702.0,38700.0,0.27575437]
[1643719586635,0.05959954,38702.0,38700.0,0.27575437]
[1643719588304,0.01169243,38703.0,38700.0,0.27575437]
[1643719588305,0.00134643,38703.0,38701.0,0.54895587]
[1643719588501,0.00134643,38703.0,38702.0,0.87910756]
[1643719588700,0.00134643,38703.0,38702.0,0.999249]
[1643719589100,0.010422,38707.0,38706.0,0.97287501]
[1643719589300,0.001,38709.0,38707.0,1.15]
[1643719589505,0.003,38712.0,38708.0,0.57835656]
[1643719589700,0.004,38720.0,38709.0,1.0016]
[1643719589899,0.02201327,38714.0,38710.0,0.349249]
[1643719590103,0.02201327,38714.0,38711.0,0.14849415]
[1643719590301,0.06457228,38720.0,38715.0,0.75]
[1643719590504,0.002,38723.0,38715.0,0.75]
[1643719590505,0.002,38723.0,38716.0,0.64292056]
[1643719590700,0.002,38723.0,38716.0,0.74292056]
[1643719591103,0.002,38723.0,38716.0,0.064564]
[1643719591435,0.002,38723.0,38718.0,0.1493719]
[1643719592035,0.012341,38723.0,38718.0,0.1493719]
[1643719592435,0.002,38723.0,38718.0,0.1493719]
[1643719592837,0.00434735,38722.0,38718.0,0.1493719]
[1643719593438,0.06457072,38721.0,38718.0,0.1493719]
[1643719594039,0.06591807,38721.0,38718.0,0.1493719]
[1643719594439,0.06591807,38721.0,38718.0,0.09802632]
[1643719595041,0.06457072,38721.0,38718.0,0.09802632]
[1643719595298,0.06591807,38721.0,38718.0,0.09802632]
[1643719595693,0.11591807,38721.0,38718.0,0.09802632]
[1643719595892,0.11591807,38721.0,38714.0,0.28375029]
[1643719596296,0.11457072,38721.0,38714.0,0.48478012]
[1643719596493,0.06592045,38719.0,38714.0,0.48478012]
[1643719596894,0.06592045,38719.0,38715.0,0.13903396]
[1643719597094,0.06592045,38719.0,38716.0,0.20068097]
[1643719597296,0.00134735,38719.0,38716.0,0.25068097]
[1643719597495,0.05,38721.0,38717.0,0.349249]
[1643719597695,0.00134735,38719.0,38718.0,0.20481993]
[1643719597898,0.00134735,38719.0,38718.0,0.55406893]
[1643719598096,0.00134735,38719.0,38718.0,1.30406893]
[1643719598298,0.00134735,38719.0,38718.0,1.46863193]
[1643719598495,0.00134735,38719.0,38718.0,2.84663193]
[1643719598697,0.003,38722.0,38718.0,1.46863193]
[1643719598935,0.00134735,38720.0,38719.0,0.349249]
[1643719599135,0.00134735,38720.0,38719.0,0.99452145]
[1643719599535,0.00134735,38720.0,38719.0,0.449249]
[1643719599936,0.01034,38721.0,38719.0,0.449249]
[1643719600137,0.01168735,38721.0,38720.0,1.00471014]
[1643719600336,0.00134735,38721.0,38720.0,1.41851514]
[1643719600738,0.00134735,38721.0,38720.0,1.72651333]
[1643719601240,0.003,38722.0,38720.0,1.72651333]
[1643719601439,0.003,38722.0,38721.0,1.05508578]
[1643719601839,0.003,38722.0,38721.0,0.55508578]
[1643719603487,0.003,38722.0,38721.0,0.349249]
[1643719603690,0.003,38722.0,38721.0,0.47353024]
[1643719606538,0.003,38722.0,38721.0,0.12428124]
[1643719607440,0.003,38722.0,38721.0,0.47353024]
[1643719609341,0.003,38722.0,38721.0,0.349249]
[1643719609539,0.003,38722.0,38717.0,0.064564]
[1643719609740,0.003,38722.0,38719.0,0.29227667]
[1643719609940,0.003,38722.0,38717.0,0.064564]
[1643719610392,0.003,38722.0,38712.0,0.5875]
[1643719610591,0.07854867,38715.0,38709.0,0.1179]
[1643719610793,0.2630429,38713.0,38707.0,0.3837]
[1643719610990,0.2630429,38713.0,38710.0,0.02066075]
[1643719611189,0.0516,38714.0,38710.0,0.02066075]
[1643719611390,0.0516,38714.0,38704.0,0.26502263]
[1643719611391,0.0516,38714.0,38707.0,0.15776933]
[1643719611791,0.061942,38714.0,38707.0,0.15776933]
[1643719611992,0.00134826,38712.0,38707.0,0.15776933]
[1643719612997,0.06458765,38713.0,38707.0,0.15776933]
[1643719613195,0.00134826,38711.0,38707.0,0.15776933]
[1643719613398,0.00134826,38711.0,38704.0,0.26502263]
[1643719613594,0.00134826,38711.0,38707.0,0.02061228]
[1643719613797,0.06593494,38711.0,38701.0,0.129165]
[1643719614039,0.06593494,38711.0,38698.0,0.494]
[1643719614040,0.37230694,38710.0,38698.0,0.494]
[1643719614240,0.42230694,38710.0,38698.0,0.3761]
[1643719614438,0.14368945,38706.0,38698.0,0.440696]
[1643719614640,0.14368945,38706.0,38699.0,0.349249]
[1643719614839,0.14368945,38706.0,38701.0,0.2618867]
[1643719615238,0.14368945,38706.0,38698.0,0.46145555]
[1643719615440,0.14368945,38706.0,38698.0,0.3761]
[1643719615639,0.00134826,38705.0,38698.0,0.3761]
[1643719615839,0.23058343,38705.0,38698.0,0.3761]
[1643719616042,0.00134826,38705.0,38698.0,0.3761]
[1643719616239,0.00134826,38705.0,38698.0,0.27383145]
[1643719616641,0.19368945,38706.0,38699.0,0.349249]
[1643719616840,0.19368945,38706.0,38698.0,0.27383145]
[1643719616841,0.00134826,38703.0,38698.0,0.27383145]
[1643719617041,0.00134826,38703.0,38699.0,0.349249]
[1643719617241,0.00134826,38703.0,38697.0,0.064597]
[1643719617442,0.00134826,38703.0,38698.0,0.349249]
[1643719617698,0.00134826,38703.0,38698.0,0.57259388]
[1643719617891,0.4064143,38710.0,38698.0,0.62259388]
[1643719618090,0.00134826,38702.0,38701.0,0.064591]
[1643719618290,0.00134826,38702.0,38701.0,0.628414]
[1643719618694,0.00134826,38702.0,38701.0,0.678414]
[1643719618891,0.16473531,38732.0,38702.0,1.25]
[1643719619094,0.16473531,38732.0,38719.0,0.1]
[1643719619095,0.05152183,38720.0,38719.0,0.1]
[1643719619991,0.06336518,38720.0,38719.0,0.1]
[1643719620192,0.1279466,38720.0,38719.0,0.1]
[1643719621090,0.4618354,38720.0,38719.0,0.1]
[1643719621536,0.1779466,38720.0,38719.0,0.1]
[1643719621836,0.07642477,38720.0,38719.0,0.1]
[1643719623236,0.12642477,38720.0,38719.0,0.1]
[1643719624838,0.82642477,38720.0,38707.0,0.31399649]
[1643719625039,0.2668211,38719.0,38707.0,0.09845617]
[1643719625292,0.05,38719.0,38718.0,0.1]
[1643719625991,0.3024584,38720.0,38718.0,0.1]
[1643719626191,0.3670412,38720.0,38718.0,0.1]
[1643719626395,0.01184335,38719.0,38718.0,0.1]
[1643719626592,0.06184335,38719.0,38718.0,0.1]
[1643719627596,0.01184335,38719.0,38718.0,0.38495949]
[1643719627893,0.01184335,38719.0,38718.0,0.77996216]
[1643719628097,0.01184335,38719.0,38718.0,1.12921116]
[1643719628494,0.01184335,38719.0,38718.0,1.229097]
[1643719628696,0.01184335,38719.0,38718.0,1.329097]
[1643719629338,0.01184335,38719.0,38718.0,1.12921116]
[1643719629738,0.01184335,38719.0,38718.0,0.54522784]
[1643719630039,0.01184335,38719.0,38718.0,0.91588339]
[1643719630239,0.01184335,38719.0,38718.0,1.36513239]
[1643719631740,0.01184335,38719.0,38718.0,1.31513239]
[1643719632687,0.00110227,38720.0,38718.0,1.31513239]
[1643719632983,0.00110227,38720.0,38719.0,1.04573836]
[1643719633183,0.00110227,38720.0,38719.0,0.64573836]
[1643719633384,0.07640459,38730.0,38719.0,0.61548887]
[1643719633584,0.07640459,38730.0,38729.0,0.1]
[1643719634087,0.12640459,38730.0,38729.0,0.1]
[1643719634684,0.40479565,38730.0,38729.0,0.1]
[1643719635086,0.70216023,38730.0,38729.0,0.1]
[1643719635285,0.38161766,38721.0,38717.0,0.02035571]
[1643719635687,0.00451067,38719.0,38717.0,0.02035571]
[1643719636087,0.00451067,38719.0,38715.0,0.52303892]
[1643719636285,0.01184335,38720.0,38715.0,0.52303892]
[1643719636538,0.00451067,38716.0,38715.0,0.52303892]
[1643719637139,0.01184335,38720.0,38715.0,0.52303892]
[1643719637140,0.00451067,38718.0,38715.0,0.52303892]
[1643719637340,0.00451067,38716.0,38715.0,0.52303892]
[1643719637940,0.00564331,38717.0,38715.0,1.42878875]
[1643719638140,0.00564331,38717.0,38716.0,0.56365542]
[1643719638341,0.00451067,38717.0,38716.0,0.349249]
[1643719638740,0.00451067,38717.0,38715.0,0.52303892]
[1643719638741,0.01635402,38717.0,38715.0,0.52303892]
[1643719639144,0.01635402,38717.0,38716.0,0.05]
[1643719639345,0.01184335,38717.0,38716.0,0.05]
[1643719639741,0.01184335,38717.0,38716.0,0.65344437]
[1643719639940,0.01184335,38717.0,38716.0,0.87004302]
[1643719642489,0.00113396,38718.0,38716.0,0.87004302]
[1643719642686,0.00113396,38718.0,38717.0,0.25476532]
[1643719642886,0.00113396,38718.0,38717.0,0.70401432]
[1643719643087,0.01184335,38719.0,38717.0,0.76857832]
[1643719643286,0.01297731,38719.0,38718.0,0.57837133]
[1643719643687,0.01297731,38719.0,38718.0,0.67837133]
[1643719644338,0.01184335,38719.0,38718.0,0.67837133]
[1643719644838,0.00113374,38720.0,38719.0,0.8]
[1643719645038,0.00113374,38720.0,38719.0,0.59249194]
[1643719645441,0.00451067,38723.0,38719.0,0.59249194]
[1643719645643,0.00113374,38721.0,38720.0,0.349249]
[1643719645841,0.00113374,38721.0,38720.0,0.84932488]
[1643719646039,0.00113374,38721.0,38720.0,0.89932488]
[1643719646239,0.00113374,38721.0,38720.0,0.52022315]
[1643719646640,0.00451067,38723.0,38720.0,0.52022315]
[1643719646842,0.00113374,38722.0,38720.0,0.17097415]
[1643719647242,0.00451067,38721.0,38720.0,0.17097415]
[1643719647443,0.00451067,38721.0,38716.0,0.37329537]
[1643719647697,0.00451067,38718.0,38715.0,0.3975]
[1643719647891,0.00451067,38718.0,38716.0,0.56254291]
[1643719648089,0.00451067,38718.0,38717.0,0.21384901]
[1643719648289,0.00113377,38720.0,38717.0,0.21384901]
[1643719648489,0.00113377,38720.0,38719.0,0.15907647]
[1643719648889,0.00564444,38720.0,38719.0,0.15457647]
[1643719649090,0.00451067,38720.0,38719.0,0.15457647]
[1643719650390,0.00451067,38720.0,38715.0,0.3975]
[1643719650592,0.06457694,38720.0,38715.0,0.3975]
[1643719650790,0.00451067,38716.0,38715.0,0.3975]
[1643719651193,0.00451067,38716.0,38715.0,0.746749]
[1643719652946,0.00564443,38717.0,38715.0,0.746749]
[1643719653145,0.00564443,38717.0,38716.0,0.349249]
[1643719653346,0.00113376,38717.0,38716.0,0.399249]
[1643719653547,0.00113376,38717.0,38716.0,0.349249]
[1643719654045,0.00113376,38718.0,38716.0,0.349249]
[1643719654247,0.00564443,38718.0,38716.0,0.349249]
[1643719655047,0.00451067,38718.0,38716.0,0.349249]
[1643719655493,0.12701484,38718.0,38713.0,0.02111764]
[1643719655702,0.00451067,38714.0,38713.0,0.02111764]
[1643719656091,0.00451067,38714.0,38705.0,0.1226]
[1643719656291,0.00451067,38714.0,38701.0,0.9383]
[1643719656292,0.00451067,38706.0,38702.0,0.05]
[1643719656493,0.00451067,38704.0,38702.0,0.36281425]
[1643719656693,0.00451067,38704.0,38702.0,0.16662535]
[1643719657092,0.00451067,38704.0,38701.0,0.9383]
[1643719657396,0.81670803,38710.0,38701.0,0.3894]
[1643719657591,0.05,38709.0,38701.0,0.3894]
[1643719657792,0.00113377,38704.0,38701.0,0.6844457]
[1643719658594,0.24769282,38709.0,38701.0,0.3894]
[1643719658794,0.06460162,38707.0,38701.0,0.3894]
[1643719659046,0.00113378,38704.0,38701.0,0.3894]
[1643719659246,0.29843066,38704.0,38695.0,0.064603]
[1643719659457,0.29843066,38704.0,38699.0,0.02164464]
[1643719659458,0.29770844,38703.0,38699.0,0.02164464]
[1643719659652,0.29770844,38703.0,38693.0,0.00157623]
[1643719659653,0.36660976,38702.0,38693.0,0.00157623]
[1643719659955,0.36660976,38702.0,38687.0,0.64320724]
[1643719659956,0.16910459,38694.0,38687.0,0.3761]
[1643719660148,0.16910459,38694.0,38693.0,0.00157621]
[1643719660448,0.27070459,38694.0,38693.0,0.00157621]
[1643719661048,0.27070459,38694.0,38688.0,0.27512188]
[1643719661246,0.27070459,38694.0,38692.0,0.00100923]
[1643719661649,0.06462214,38693.0,38692.0,0.00100923]
[1643719661847,0.27070459,38694.0,38692.0,0.00100923]
[1643719661848,0.05,38694.0,38692.0,0.00100923]
[1643719662048,0.010347,38695.0,38692.0,0.00100923]
[1643719662247,0.42824633,38696.0,38688.0,0.27512188]
[1643719662453,0.25137233,38695.0,38692.0,0.00174182]
[1643719662698,0.24654542,38695.0,38692.0,0.00174182]
[1643719662993,0.49287133,38696.0,38692.0,0.00174182]
[1643719663492,0.17924644,38696.0,38692.0,0.37474353]
[1643719663692,0.11462144,38696.0,38692.0,0.37648533]
[1643719664192,0.06462144,38696.0,38692.0,0.37648533]
[1643719664392,0.06462144,38696.0,38692.0,0.23117962]
[1643719664794,0.06462144,38696.0,38692.0,0.22943782]
[1643719664998,0.7019959,38698.0,38692.0,0.23117962]
[1643719665195,0.45098039,38698.0,38692.0,0.23117962]
[1643719665396,0.45098039,38698.0,38692.0,0.38854431]
[1643719665794,0.46132739,38698.0,38692.0,0.38854431]
[1643719665994,0.51132739,38698.0,38692.0,0.38680251]
[1643719666195,0.50098039,38698.0,38693.0,0.00174177]
[1643719667049,0.50098039,38698.0,38692.0,0.38680251]
[1643719667250,0.25028607,38697.0,38693.0,0.00165936]